[Event "Titled Tuesday Blitz May 03 Early 2022"]
[White "Zhu, Jiner"]
[Black "Warchol, Kamil"]
[WhiteFideId "8608059"]
[BlackFideId "21858241"]
[WhiteElo "2281"]
[BlackElo "1910"]
[Result "1/2-1/2"]
[Round "01"]
[TimeControl "180+1"]
[Date "2022.05.03"]
[WhiteClock "0:00:16"]
[BlackClock "0:00:44"]

1. e4 {[%clk 0:03:00]}  c5 {[%clk 0:02:59]} 2. Nf3 {[%clk 0:03:00]}  e6 {[%clk 0:02:59]} 3. d4 {[%clk 0:03:01]}  cxd4 {[%clk 0:02:58]} 4. Nxd4 {[%clk 0:03:02]}  a6 {[%clk 0:02:58]} 5. Bd3 {[%clk 0:03:01]}  Nc6 {[%clk 0:02:57]} 6. Nxc6 {[%clk 0:02:54]}  dxc6 {[%clk 0:02:58]} 7. O-O {[%clk 0:02:54]}  e5 {[%clk 0:02:58]} 8. a4 {[%clk 0:02:52]}  Nf6 {[%clk 0:02:43]} 9. Nd2 {[%clk 0:02:52]}  Be7 {[%clk 0:02:27]} 10. Nc4 {[%clk 0:02:50]}  Nd7 {[%clk 0:02:27]} 11. a5 {[%clk 0:02:31]}  O-O {[%clk 0:02:27]} 12. Be3 {[%clk 0:02:30]}  Qc7 {[%clk 0:02:20]} 13. c3 {[%clk 0:02:23]}  Nc5 {[%clk 0:02:16]} 14. Bc2 {[%clk 0:02:22]}  Be6 {[%clk 0:02:14]} 15. Qe2 {[%clk 0:02:22]}  Rad8 {[%clk 0:02:11]} 16. b4 {[%clk 0:02:18]}  Nd7 {[%clk 0:02:10]} 17. Nb6 {[%clk 0:01:58]}  Nf6 {[%clk 0:02:06]} 18. Na4 {[%clk 0:01:53]}  Nd7 {[%clk 0:02:05]} 19. Rfd1 {[%clk 0:01:49]}  c5 {[%clk 0:02:03]} 20. Rac1 {[%clk 0:01:40]}  Qb8 {[%clk 0:01:50]} 21. f3 {[%clk 0:01:26]}  cxb4 {[%clk 0:01:43]} 22. cxb4 {[%clk 0:01:15]}  Bxb4 {[%clk 0:01:42]} 23. Nb6 {[%clk 0:00:47]}  Bxa5 {[%clk 0:01:32]} 24. Nd5 {[%clk 0:00:47]}  Bxd5 {[%clk 0:01:24]} 25. Rxd5 {[%clk 0:00:47]}  Bb6 {[%clk 0:01:24]} 26. Rb1 {[%clk 0:00:25]}  Bxe3+ {[%clk 0:01:09]} 27. Qxe3 {[%clk 0:00:26]}  Nf6 {[%clk 0:01:08]} 28. Rxd8 {[%clk 0:00:26]}  Rxd8 {[%clk 0:01:09]} 29. Qb6 {[%clk 0:00:26]}  Qc8 {[%clk 0:01:04]} 30. Ba4 {[%clk 0:00:19]}  h6 {[%clk 0:00:48]} 31. Qxb7 {[%clk 0:00:18]}  Qxb7 {[%clk 0:00:46]} 32. Rxb7 {[%clk 0:00:18]}  Rd4 {[%clk 0:00:46]} 33. Bb3 {[%clk 0:00:18]}  Rd7 {[%clk 0:00:45]} 34. Rb8+ {[%clk 0:00:18]}  Kh7 {[%clk 0:00:45]} 35. Ra8 {[%clk 0:00:16]}  Rb7 {[%clk 0:00:44]} 1/2-1/2


[Site "https://www.chess.com"]

[Event "Titled Tuesday Blitz May 03 Early 2022"]
[White "Zlatin, Alexander"]
[Black "Lorparizangeneh, Shahin"]
[WhiteFideId "2810549"]
[BlackFideId "12521604"]
[WhiteElo "2469"]
[BlackElo "2807"]
[Result "0-1"]
[Round "01"]
[TimeControl "180+1"]
[Date "2022.05.03"]
[WhiteClock "0:00:05"]
[BlackClock "0:00:41"]

1. d4 {[%clk 0:02:57]}  d6 {[%clk 0:02:56]} 2. Nc3 {[%clk 0:02:56]}  g6 {[%clk 0:02:52]} 3. e4 {[%clk 0:02:56]}  Bg7 {[%clk 0:02:52]} 4. Bf4 {[%clk 0:02:52]}  e5 {[%clk 0:02:49]} 5. dxe5 {[%clk 0:02:50]}  dxe5 {[%clk 0:02:50]} 6. Qxd8+ {[%clk 0:02:50]}  Kxd8 {[%clk 0:02:50]} 7. Bg5+ {[%clk 0:02:45]}  f6 {[%clk 0:02:49]} 8. O-O-O+ {[%clk 0:02:45]}  Nd7 {[%clk 0:02:47]} 9. Be3 {[%clk 0:02:46]}  Bh6 {[%clk 0:02:44]} 10. Bxh6 {[%clk 0:02:41]}  Nxh6 {[%clk 0:02:45]} 11. h3 {[%clk 0:02:37]}  c6 {[%clk 0:02:39]} 12. Nf3 {[%clk 0:02:34]}  Kc7 {[%clk 0:02:36]} 13. g4 {[%clk 0:02:27]}  Nf7 {[%clk 0:02:28]} 14. Bc4 {[%clk 0:02:12]}  Nd6 {[%clk 0:02:27]} 15. Bb3 {[%clk 0:02:08]}  Nc5 {[%clk 0:02:26]} 16. Rhe1 {[%clk 0:02:07]}  a5 {[%clk 0:02:18]} 17. a3 {[%clk 0:01:45]}  h5 {[%clk 0:02:14]} 18. g5 {[%clk 0:01:39]}  Bxh3 {[%clk 0:02:11]} 19. gxf6 {[%clk 0:01:38]}  Bg4 {[%clk 0:02:11]} 20. Re3 {[%clk 0:01:25]}  Rhf8 {[%clk 0:02:05]} 21. Rde1 {[%clk 0:01:13]}  Rae8 {[%clk 0:02:01]} 22. Ba2 {[%clk 0:00:57]}  Rxf6 {[%clk 0:01:56]} 23. Ng5 {[%clk 0:00:56]}  Rxf2 {[%clk 0:01:53]} 24. b4 {[%clk 0:00:48]}  axb4 {[%clk 0:01:52]} 25. axb4 {[%clk 0:00:48]}  Na6 {[%clk 0:01:48]} 26. b5 {[%clk 0:00:44]}  Nb4 {[%clk 0:01:46]} 27. Bb3 {[%clk 0:00:38]}  Nxb5 {[%clk 0:01:40]} 28. Nxb5+ {[%clk 0:00:36]}  cxb5 {[%clk 0:01:41]} 29. Rc3+ {[%clk 0:00:28]}  Kb6 {[%clk 0:01:40]} 30. Nf7 {[%clk 0:00:26]}  Nc6 {[%clk 0:01:31]} 31. Bd5 {[%clk 0:00:21]}  Nd4 {[%clk 0:01:26]} 32. Kb2 {[%clk 0:00:17]}  Re7 {[%clk 0:01:04]} 33. Nd6 {[%clk 0:00:15]}  Rc7 {[%clk 0:01:03]} 34. Rxc7 {[%clk 0:00:09]}  Kxc7 {[%clk 0:01:04]} 35. Nf7 {[%clk 0:00:09]}  Rxc2+ {[%clk 0:00:58]} 36. Ka3 {[%clk 0:00:10]}  Kb6 {[%clk 0:00:56]} 37. Nxe5 {[%clk 0:00:09]}  Ka5 {[%clk 0:00:56]} 38. Rb1 {[%clk 0:00:07]}  h4 {[%clk 0:00:52]} 39. Rb2 {[%clk 0:00:04]}  Rxb2 {[%clk 0:00:51]} 40. Kxb2 {[%clk 0:00:05]}  Be2 {[%clk 0:00:50]} 41. Nxg6 {[%clk 0:00:03]}  h3 {[%clk 0:00:50]} 42. e5 {[%clk 0:00:03]}  h2 {[%clk 0:00:46]} 43. Nf4 {[%clk 0:00:03]}  Bf3 {[%clk 0:00:45]} 44. e6 {[%clk 0:00:03]}  Bxd5 {[%clk 0:00:44]} 45. e7 {[%clk 0:00:02]}  Bc6 {[%clk 0:00:44]} 46. e8=Q {[%clk 0:00:02]}  Bxe8 {[%clk 0:00:44]} 47. Nd3 {[%clk 0:00:03]}  h1=Q {[%clk 0:00:44]} 48. Kc3 {[%clk 0:00:03]}  Nc6 {[%clk 0:00:43]} 49. Kb2 {[%clk 0:00:03]}  Qf1 {[%clk 0:00:43]} 50. Kc3 {[%clk 0:00:04]}  Bg6 {[%clk 0:00:42]} 51. Kb2 {[%clk 0:00:04]}  Qxd3 {[%clk 0:00:42]} 52. Ka1 {[%clk 0:00:05]}  Qb1# {[%clk 0:00:41]} 0-1


[Site "https://www.chess.com"]

[Event "Titled Tuesday Blitz May 03 Early 2022"]
[White "parintele_chess"]
[Black "Kim, Sergey"]
[BlackFideId "13700570"]
[WhiteElo "2219"]
[BlackElo "2572"]
[Result "0-1"]
[Round "01"]
[TimeControl "180+1"]
[Date "2022.05.03"]
[WhiteClock "0:00:04"]
[BlackClock "0:00:26"]

1. d4 {[%clk 0:02:55]}  Nf6 {[%clk 0:02:59]} 2. Bf4 {[%clk 0:02:54]}  g6 {[%clk 0:02:59]} 3. Nc3 {[%clk 0:02:52]}  d6 {[%clk 0:02:58]} 4. e4 {[%clk 0:02:52]}  c6 {[%clk 0:02:56]} 5. Nf3 {[%clk 0:02:51]}  Qc7 {[%clk 0:02:53]} 6. Bd3 {[%clk 0:02:50]}  Nbd7 {[%clk 0:02:51]} 7. O-O {[%clk 0:02:50]}  e5 {[%clk 0:02:47]} 8. Be3 {[%clk 0:02:49]}  Bg7 {[%clk 0:02:45]} 9. h3 {[%clk 0:02:49]}  O-O {[%clk 0:02:44]} 10. Qe2 {[%clk 0:02:47]}  Re8 {[%clk 0:02:43]} 11. Rfe1 {[%clk 0:02:39]}  a5 {[%clk 0:02:42]} 12. a4 {[%clk 0:02:34]}  exd4 {[%clk 0:02:33]} 13. Bxd4 {[%clk 0:02:32]}  Ne5 {[%clk 0:02:33]} 14. Nxe5 {[%clk 0:02:26]}  dxe5 {[%clk 0:02:33]} 15. Be3 {[%clk 0:02:22]}  Nd7 {[%clk 0:02:31]} 16. Rad1 {[%clk 0:02:18]}  Bf8 {[%clk 0:02:26]} 17. Qf3 {[%clk 0:02:15]}  Nc5 {[%clk 0:02:25]} 18. Bc4 {[%clk 0:02:11]}  Be6 {[%clk 0:02:23]} 19. Bxe6 {[%clk 0:02:09]}  Nxe6 {[%clk 0:02:20]} 20. Rd2 {[%clk 0:02:00]}  Rad8 {[%clk 0:02:17]} 21. Red1 {[%clk 0:01:58]}  Rxd2 {[%clk 0:02:17]} 22. Rxd2 {[%clk 0:01:59]}  Be7 {[%clk 0:02:10]} 23. Qd1 {[%clk 0:01:55]}  Rd8 {[%clk 0:02:08]} 24. Rxd8+ {[%clk 0:01:55]}  Bxd8 {[%clk 0:02:08]} 25. Qd3 {[%clk 0:01:52]}  Be7 {[%clk 0:02:07]} 26. g3 {[%clk 0:01:45]}  Bc5 {[%clk 0:02:06]} 27. Bxc5 {[%clk 0:01:32]}  Nxc5 {[%clk 0:02:06]} 28. Qc4 {[%clk 0:01:32]}  Qd6 {[%clk 0:02:03]} 29. b3 {[%clk 0:01:27]}  Kg7 {[%clk 0:01:58]} 30. Kg2 {[%clk 0:01:27]}  h5 {[%clk 0:01:57]} 31. h4 {[%clk 0:01:27]}  b6 {[%clk 0:01:46]} 32. Kf3 {[%clk 0:01:02]}  Qd2 {[%clk 0:01:42]} 33. Ne2 {[%clk 0:00:47]}  Qd1 {[%clk 0:01:37]} 34. Kg2 {[%clk 0:00:44]}  Qd2 {[%clk 0:01:33]} 35. Kf3 {[%clk 0:00:40]}  Ne6 {[%clk 0:01:29]} 36. Qd3 {[%clk 0:00:30]}  Qe1 {[%clk 0:01:22]} 37. Kg2 {[%clk 0:00:30]}  Qb1 {[%clk 0:01:08]} 38. Qc3 {[%clk 0:00:24]}  Kf6 {[%clk 0:00:58]} 39. Qxc6 {[%clk 0:00:23]}  Qd1 {[%clk 0:00:55]} 40. Qc4 {[%clk 0:00:22]}  Kg7 {[%clk 0:00:52]} 41. f4 {[%clk 0:00:21]}  exf4 {[%clk 0:00:46]} 42. Qc3+ {[%clk 0:00:18]}  Kg8 {[%clk 0:00:44]} 43. Nxf4 {[%clk 0:00:18]}  Nc5 {[%clk 0:00:42]} 44. Nd5 {[%clk 0:00:08]}  Nxe4 {[%clk 0:00:38]} 45. Qc8+ {[%clk 0:00:05]}  Kg7 {[%clk 0:00:35]} 46. Qc4 {[%clk 0:00:03]}  Qd2+ {[%clk 0:00:31]} 47. Kh3 {[%clk 0:00:03]}  Nf2+ {[%clk 0:00:28]} 48. Kg2 {[%clk 0:00:03]}  Ng4+ {[%clk 0:00:27]} 49. Kf3 {[%clk 0:00:04]}  Ne5+ {[%clk 0:00:26]} 0-1


[Site "https://www.chess.com"]

[Event "Titled Tuesday Blitz May 03 Early 2022"]
[White "Agasarov, Benik"]
[Black "Manukian, Artak"]
[WhiteFideId "13314823"]
[BlackFideId "13301373"]
[WhiteElo "2546"]
[BlackElo "2364"]
[Result "0-1"]
[Round "02"]
[TimeControl "180+1"]
[Date "2022.05.03"]
[WhiteClock "0:01:03"]
[BlackClock "0:00:14"]

1. d4 {[%clk 0:03:00]}  Nf6 {[%clk 0:02:59]} 2. c4 {[%clk 0:02:57]}  e6 {[%clk 0:02:59]} 3. Nc3 {[%clk 0:02:58]}  Bb4 {[%clk 0:02:59]} 4. Nf3 {[%clk 0:02:58]}  O-O {[%clk 0:02:57]} 5. Bg5 {[%clk 0:02:56]}  c5 {[%clk 0:02:56]} 6. d5 {[%clk 0:02:55]}  Qa5 {[%clk 0:02:45]} 7. Bxf6 {[%clk 0:02:52]}  gxf6 {[%clk 0:02:46]} 8. e3 {[%clk 0:02:40]}  Bxc3+ {[%clk 0:02:46]} 9. bxc3 {[%clk 0:02:39]}  Qxc3+ {[%clk 0:02:46]} 10. Nd2 {[%clk 0:02:39]}  f5 {[%clk 0:02:36]} 11. Rc1 {[%clk 0:02:38]}  Qa5 {[%clk 0:02:24]} 12. Bd3 {[%clk 0:02:36]}  d6 {[%clk 0:02:19]} 13. O-O {[%clk 0:02:35]}  Nd7 {[%clk 0:02:13]} 14. f4 {[%clk 0:02:32]}  Nf6 {[%clk 0:02:09]} 15. Rf3 {[%clk 0:02:30]}  Kh8 {[%clk 0:02:09]} 16. Rg3 {[%clk 0:02:27]}  Rg8 {[%clk 0:02:07]} 17. Rxg8+ {[%clk 0:02:26]}  Kxg8 {[%clk 0:02:08]} 18. e4 {[%clk 0:02:21]}  Bd7 {[%clk 0:01:37]} 19. e5 {[%clk 0:02:19]}  dxe5 {[%clk 0:01:26]} 20. fxe5 {[%clk 0:02:19]}  Ne8 {[%clk 0:01:23]} 21. Nb3 {[%clk 0:02:16]}  Qd8 {[%clk 0:01:10]} 22. Kh1 {[%clk 0:02:12]}  b6 {[%clk 0:01:02]} 23. Qf3 {[%clk 0:02:12]}  Rc8 {[%clk 0:00:54]} 24. Rf1 {[%clk 0:02:10]}  Qg5 {[%clk 0:00:53]} 25. Qe2 {[%clk 0:01:59]}  Kh8 {[%clk 0:00:39]} 26. Nd2 {[%clk 0:01:56]}  Nc7 {[%clk 0:00:32]} 27. Nf3 {[%clk 0:01:55]}  Qh6 {[%clk 0:00:29]} 28. d6 {[%clk 0:01:54]}  Na6 {[%clk 0:00:27]} 29. a3 {[%clk 0:01:51]}  Nb8 {[%clk 0:00:25]} 30. Bc2 {[%clk 0:01:50]}  Bc6 {[%clk 0:00:23]} 31. Rg1 {[%clk 0:01:12]}  Nd7 {[%clk 0:00:23]} 32. Qd1 {[%clk 0:01:04]}  Rg8 {[%clk 0:00:21]} 33. Ba4 {[%clk 0:01:03]}  Bxf3 {[%clk 0:00:15]} 34. Qxf3 {[%clk 0:01:03]}  Nxe5 {[%clk 0:00:14]} 35. Qd3 {[%clk 0:01:03]}  Nxd3 {[%clk 0:00:14]} 0-1


[Site "https://www.chess.com"]

[Event "Titled Tuesday Blitz May 03 Early 2022"]
[White "Al-Tarboush, Ward"]
[Black "Visakh N R"]
[WhiteFideId "7601450"]
[BlackFideId "25012223"]
[WhiteElo "2276"]
[BlackElo "2448"]
[Result "0-1"]
[Round "02"]
[TimeControl "180+1"]
[Date "2022.05.03"]
[WhiteClock "0:00:54"]
[BlackClock "0:00:58"]

1. e4 {[%clk 0:03:00]}  c5 {[%clk 0:02:57]} 2. Nf3 {[%clk 0:03:01]}  d6 {[%clk 0:02:57]} 3. d4 {[%clk 0:03:01]}  cxd4 {[%clk 0:02:58]} 4. Nxd4 {[%clk 0:03:02]}  Nf6 {[%clk 0:02:59]} 5. Nc3 {[%clk 0:03:02]}  a6 {[%clk 0:02:59]} 6. h3 {[%clk 0:03:03]}  e5 {[%clk 0:02:57]} 7. Nde2 {[%clk 0:03:02]}  h5 {[%clk 0:02:57]} 8. Bg5 {[%clk 0:03:01]}  Be6 {[%clk 0:02:57]} 9. g3 {[%clk 0:03:00]}  Nbd7 {[%clk 0:02:54]} 10. Bg2 {[%clk 0:03:00]}  Qc7 {[%clk 0:02:53]} 11. a4 {[%clk 0:02:58]}  Be7 {[%clk 0:02:52]} 12. Qd2 {[%clk 0:02:59]}  Rc8 {[%clk 0:02:49]} 13. b3 {[%clk 0:02:57]}  O-O {[%clk 0:02:36]} 14. O-O {[%clk 0:02:57]}  b5 {[%clk 0:02:35]} 15. axb5 {[%clk 0:02:56]}  axb5 {[%clk 0:02:36]} 16. Rac1 {[%clk 0:02:44]}  Qb8 {[%clk 0:02:12]} 17. Rfd1 {[%clk 0:02:40]}  Rfe8 {[%clk 0:02:12]} 18. Be3 {[%clk 0:02:23]}  Nc5 {[%clk 0:02:02]} 19. f3 {[%clk 0:01:59]}  b4 {[%clk 0:01:50]} 20. Nd5 {[%clk 0:01:57]}  Nxd5 {[%clk 0:01:41]} 21. exd5 {[%clk 0:01:58]}  Bf5 {[%clk 0:01:41]} 22. g4 {[%clk 0:01:58]}  Bg6 {[%clk 0:01:38]} 23. f4 {[%clk 0:01:58]}  Be4 {[%clk 0:01:35]} 24. Bxc5 {[%clk 0:01:56]}  Bxg2 {[%clk 0:01:32]} 25. Kxg2 {[%clk 0:01:56]}  Rxc5 {[%clk 0:01:30]} 26. Ng3 {[%clk 0:01:44]}  hxg4 {[%clk 0:01:25]} 27. hxg4 {[%clk 0:01:45]}  Qc8 {[%clk 0:01:19]} 28. f5 {[%clk 0:01:42]}  e4 {[%clk 0:01:10]} 29. Nxe4 {[%clk 0:01:40]}  Rc7 {[%clk 0:01:11]} 30. f6 {[%clk 0:01:39]}  Bf8 {[%clk 0:01:08]} 31. Nf2 {[%clk 0:01:36]}  Rc3 {[%clk 0:01:06]} 32. fxg7 {[%clk 0:01:26]}  Bxg7 {[%clk 0:01:05]} 33. Rh1 {[%clk 0:01:07]}  Ree3 {[%clk 0:01:03]} 34. Rce1 {[%clk 0:00:54]}  Rg3+ {[%clk 0:01:00]} 35. Kf1 {[%clk 0:00:54]}  Rxc2 {[%clk 0:00:58]} 36. Qd3 {[%clk 0:00:54]}  Rxd3 {[%clk 0:00:58]} 0-1


[Site "https://www.chess.com"]

[Event "Titled Tuesday Blitz May 03 Early 2022"]
[White "Antonio, Jorge Carlos"]
[Black "Rabineau, Clement"]
[WhiteFideId "113190"]
[BlackFideId "628891"]
[WhiteElo "2247"]
[BlackElo "2237"]
[Result "0-1"]
[Round "02"]
[TimeControl "180+1"]
[Date "2022.05.03"]
[WhiteClock "0:00:59"]
[BlackClock "0:00:04"]

1. d4 {[%clk 0:03:00]}  d6 {[%clk 0:02:58]} 2. Nf3 {[%clk 0:03:00]}  g6 {[%clk 0:02:58]} 3. c4 {[%clk 0:02:59]}  Bg7 {[%clk 0:02:58]} 4. Nc3 {[%clk 0:02:59]}  c5 {[%clk 0:02:59]} 5. e3 {[%clk 0:02:53]}  Nc6 {[%clk 0:02:52]} 6. Be2 {[%clk 0:02:52]}  Nf6 {[%clk 0:02:50]} 7. d5 {[%clk 0:02:51]}  Na5 {[%clk 0:02:48]} 8. O-O {[%clk 0:02:42]}  O-O {[%clk 0:02:37]} 9. e4 {[%clk 0:02:42]}  a6 {[%clk 0:02:35]} 10. e5 {[%clk 0:02:40]}  dxe5 {[%clk 0:02:11]} 11. Nxe5 {[%clk 0:02:38]}  Nxd5 {[%clk 0:01:15]} 12. Nxf7 {[%clk 0:02:32]}  Nxc3 {[%clk 0:00:58]} 13. Nxd8 {[%clk 0:02:25]}  Nxd1 {[%clk 0:00:57]} 14. Rxd1 {[%clk 0:02:24]}  Bf5 {[%clk 0:00:43]} 15. Bd2 {[%clk 0:02:17]}  Bxb2 {[%clk 0:00:36]} 16. Bxa5 {[%clk 0:02:14]}  Bxa1 {[%clk 0:00:36]} 17. Rxa1 {[%clk 0:02:03]}  Rfxd8 {[%clk 0:00:35]} 18. Bxd8 {[%clk 0:02:02]}  Rxd8 {[%clk 0:00:36]} 19. Kf1 {[%clk 0:01:48]}  Rd2 {[%clk 0:00:36]} 20. Ke1 {[%clk 0:01:48]}  Rb2 {[%clk 0:00:36]} 21. a4 {[%clk 0:01:40]}  Rb1+ {[%clk 0:00:17]} 22. Rxb1 {[%clk 0:01:39]}  Bxb1 {[%clk 0:00:18]} 23. a5 {[%clk 0:01:37]}  Be4 {[%clk 0:00:18]} 24. f3 {[%clk 0:01:36]}  Bc6 {[%clk 0:00:18]} 25. Kd2 {[%clk 0:01:36]}  e5 {[%clk 0:00:18]} 26. Kc3 {[%clk 0:01:31]}  Kf7 {[%clk 0:00:17]} 27. g3 {[%clk 0:01:31]}  g5 {[%clk 0:00:17]} 28. h4 {[%clk 0:01:25]}  gxh4 {[%clk 0:00:10]} 29. gxh4 {[%clk 0:01:24]}  h6 {[%clk 0:00:10]} 30. Kd3 {[%clk 0:01:24]}  Kg6 {[%clk 0:00:09]} 31. Ke3 {[%clk 0:01:22]}  Kf6 {[%clk 0:00:05]} 32. Bd1 {[%clk 0:01:21]}  Ke6 {[%clk 0:00:06]} 33. Be2 {[%clk 0:01:21]}  Kd6 {[%clk 0:00:06]} 34. f4 {[%clk 0:01:21]}  exf4+ {[%clk 0:00:06]} 35. Kxf4 {[%clk 0:01:21]}  Ke6 {[%clk 0:00:04]} 36. h5 {[%clk 0:01:21]}  Kf6 {[%clk 0:00:05]} 37. Kg4 {[%clk 0:01:21]}  Bh1 {[%clk 0:00:05]} 38. Kf4 {[%clk 0:01:21]}  Bc6 {[%clk 0:00:06]} 39. Kg4 {[%clk 0:01:21]}  Ke5 {[%clk 0:00:06]} 40. Bf1 {[%clk 0:01:17]}  Be4 {[%clk 0:00:06]} 41. Be2 {[%clk 0:01:17]}  Bf5+ {[%clk 0:00:06]} 42. Kh4 {[%clk 0:01:16]}  Be4 {[%clk 0:00:07]} 43. Kg3 {[%clk 0:01:15]}  Kf5 {[%clk 0:00:06]} 44. Bg4+ {[%clk 0:01:14]}  Kg5 {[%clk 0:00:06]} 45. Bc8 {[%clk 0:01:14]}  Kxh5 {[%clk 0:00:05]} 46. Kf4 {[%clk 0:01:15]}  Bc6 {[%clk 0:00:05]} 47. Ke5 {[%clk 0:01:15]}  Kg5 {[%clk 0:00:03]} 48. Kd6 {[%clk 0:01:16]}  Kf4 {[%clk 0:00:03]} 49. Kxc5 {[%clk 0:01:16]}  h5 {[%clk 0:00:03]} 50. Kb6 {[%clk 0:01:16]}  h4 {[%clk 0:00:04]} 51. Bxb7 {[%clk 0:01:17]}  Bxb7 {[%clk 0:00:04]} 52. Kxb7 {[%clk 0:01:17]}  h3 {[%clk 0:00:05]} 53. c5 {[%clk 0:01:18]}  h2 {[%clk 0:00:06]} 54. c6 {[%clk 0:01:19]}  h1=Q {[%clk 0:00:07]} 55. Kb6 {[%clk 0:01:17]}  Qb1+ {[%clk 0:00:07]} 56. Kxa6 {[%clk 0:01:17]}  Ke5 {[%clk 0:00:06]} 57. c7 {[%clk 0:01:16]}  Qd3+ {[%clk 0:00:06]} 58. Kb7 {[%clk 0:01:16]}  Qb5+ {[%clk 0:00:06]} 59. Ka7 {[%clk 0:01:11]}  Qc5+ {[%clk 0:00:06]} 60. Kb8 {[%clk 0:01:12]}  Qb4+ {[%clk 0:00:05]} 61. Ka7 {[%clk 0:01:11]}  Qd4+ {[%clk 0:00:04]} 62. Kb7 {[%clk 0:01:11]}  Qd5+ {[%clk 0:00:04]} 63. Kb8 {[%clk 0:01:11]}  Qd6 {[%clk 0:00:04]} 64. Kb7 {[%clk 0:01:11]}  Qd7 {[%clk 0:00:05]} 65. a6 {[%clk 0:01:11]}  Kd6 {[%clk 0:00:04]} 66. a7 {[%clk 0:01:08]}  Qxc7+ {[%clk 0:00:04]} 67. Ka6 {[%clk 0:01:09]}  Qc6+ {[%clk 0:00:04]} 68. Ka5 {[%clk 0:01:09]}  Kc5 {[%clk 0:00:04]} 69. a8=Q {[%clk 0:00:59]}  Qxa8# {[%clk 0:00:04]} 0-1


[Site "https://www.chess.com"]

[Event "Titled Tuesday Blitz May 03 Early 2022"]
[White "Aslanov, Umid"]
[Black "Winkels, Marcel"]
[WhiteFideId "13412620"]
[BlackFideId "1003887"]
[WhiteElo "1796"]
[BlackElo "1900"]
[Result "1-0"]
[Round "02"]
[TimeControl "180+1"]
[Date "2022.05.03"]
[WhiteClock "0:00:15"]
[BlackClock "0:00:06"]

1. e4 {[%clk 0:03:00]}  g6 {[%clk 0:02:59]} 2. d4 {[%clk 0:03:00]}  Bg7 {[%clk 0:02:59]} 3. Nc3 {[%clk 0:03:01]}  d6 {[%clk 0:02:59]} 4. f4 {[%clk 0:02:59]}  Nc6 {[%clk 0:02:54]} 5. Nf3 {[%clk 0:02:59]}  a6 {[%clk 0:02:53]} 6. Bd3 {[%clk 0:02:58]}  Nf6 {[%clk 0:02:44]} 7. e5 {[%clk 0:02:46]}  dxe5 {[%clk 0:02:43]} 8. dxe5 {[%clk 0:02:44]}  Nd5 {[%clk 0:02:40]} 9. Nxd5 {[%clk 0:02:43]}  Qxd5 {[%clk 0:02:39]} 10. Qe2 {[%clk 0:02:43]}  Nd4 {[%clk 0:02:17]} 11. Nxd4 {[%clk 0:01:57]}  Qxd4 {[%clk 0:02:15]} 12. c3 {[%clk 0:01:58]}  Qd5 {[%clk 0:01:57]} 13. Be4 {[%clk 0:01:48]}  Qd8 {[%clk 0:01:45]} 14. Be3 {[%clk 0:01:46]}  O-O {[%clk 0:01:26]} 15. g4 {[%clk 0:01:33]}  f6 {[%clk 0:01:20]} 16. exf6 {[%clk 0:01:25]}  exf6 {[%clk 0:01:19]} 17. Bc5 {[%clk 0:01:01]}  Re8 {[%clk 0:01:08]} 18. Rd1 {[%clk 0:01:00]}  Bd7 {[%clk 0:00:53]} 19. O-O {[%clk 0:00:44]}  Qc8 {[%clk 0:00:48]} 20. Qc4+ {[%clk 0:00:39]}  Kh8 {[%clk 0:00:45]} 21. Bf3 {[%clk 0:00:33]}  Bb5 {[%clk 0:00:28]} 22. Qf7 {[%clk 0:00:29]}  Bxf1 {[%clk 0:00:26]} 23. Rd7 {[%clk 0:00:27]}  Rg8 {[%clk 0:00:23]} 24. Kxf1 {[%clk 0:00:20]}  Qe8 {[%clk 0:00:22]} 25. Bxb7 {[%clk 0:00:18]}  Qxf7 {[%clk 0:00:19]} 26. Rxf7 {[%clk 0:00:19]}  Rab8 {[%clk 0:00:19]} 27. Rxc7 {[%clk 0:00:20]}  f5 {[%clk 0:00:15]} 28. gxf5 {[%clk 0:00:18]}  gxf5 {[%clk 0:00:14]} 29. b4 {[%clk 0:00:19]}  Bf6 {[%clk 0:00:13]} 30. Bd5 {[%clk 0:00:17]}  Rgd8 {[%clk 0:00:12]} 31. Be6 {[%clk 0:00:16]}  Rd1+ {[%clk 0:00:11]} 32. Ke2 {[%clk 0:00:16]}  Rh1 {[%clk 0:00:09]} 33. Bxf5 {[%clk 0:00:16]}  Rxh2+ {[%clk 0:00:09]} 34. Kf3 {[%clk 0:00:17]}  Rf8 {[%clk 0:00:07]} 35. Bxf8 {[%clk 0:00:16]}  Rh3+ {[%clk 0:00:05]} 36. Bxh3 {[%clk 0:00:16]}  Bxc3 {[%clk 0:00:06]} 37. Rxc3 {[%clk 0:00:15]} 1-0


[Site "https://www.chess.com"]

[Event "Titled Tuesday Blitz May 03 Early 2022"]
[White "Atanasov, Anthony"]
[Black "Ozturk, Efe Hakan"]
[WhiteFideId "2623897"]
[BlackFideId "34550216"]
[WhiteElo "1928"]
[BlackElo "1924"]
[Result "1-0"]
[Round "02"]
[TimeControl "180+1"]
[Date "2022.05.03"]
[WhiteClock "0:00:17"]
[BlackClock "0:00:02"]

1. d4 {[%clk 0:03:00]}  Nf6 {[%clk 0:02:59]} 2. Nf3 {[%clk 0:03:01]}  e6 {[%clk 0:02:56]} 3. Bf4 {[%clk 0:03:00]}  d5 {[%clk 0:02:56]} 4. e3 {[%clk 0:03:00]}  Bd6 {[%clk 0:02:57]} 5. Nbd2 {[%clk 0:03:01]}  O-O {[%clk 0:02:57]} 6. Bd3 {[%clk 0:03:01]}  b6 {[%clk 0:02:57]} 7. Qe2 {[%clk 0:02:58]}  a5 {[%clk 0:02:54]} 8. Bg5 {[%clk 0:02:58]}  Ba6 {[%clk 0:02:49]} 9. e4 {[%clk 0:02:49]}  dxe4 {[%clk 0:02:22]} 10. Nxe4 {[%clk 0:02:44]}  Bxd3 {[%clk 0:02:19]} 11. Qxd3 {[%clk 0:02:38]}  Be7 {[%clk 0:02:19]} 12. Bxf6 {[%clk 0:02:35]}  Bxf6 {[%clk 0:02:20]} 13. h4 {[%clk 0:02:30]}  Na6 {[%clk 0:01:36]} 14. Nfg5 {[%clk 0:02:27]}  g6 {[%clk 0:01:27]} 15. O-O-O {[%clk 0:02:22]}  Nb4 {[%clk 0:01:26]} 16. Qf3 {[%clk 0:02:19]}  Bg7 {[%clk 0:01:09]} 17. h5 {[%clk 0:01:50]}  f5 {[%clk 0:00:35]} 18. hxg6 {[%clk 0:01:27]}  fxe4 {[%clk 0:00:26]} 19. Qg4 {[%clk 0:01:00]}  h6 {[%clk 0:00:20]} 20. Qxe6+ {[%clk 0:00:56]}  Kh8 {[%clk 0:00:19]} 21. Rh5 {[%clk 0:00:35]}  Qd5 {[%clk 0:00:15]} 22. Nf7+ {[%clk 0:00:33]}  Rxf7 {[%clk 0:00:16]} 23. Rxd5 {[%clk 0:00:34]}  Rf6 {[%clk 0:00:08]} 24. Qxe4 {[%clk 0:00:26]}  Nxd5 {[%clk 0:00:08]} 25. Qxd5 {[%clk 0:00:27]}  Re8 {[%clk 0:00:06]} 26. Qd7 {[%clk 0:00:20]}  Re2 {[%clk 0:00:02]} 27. Qd8+ {[%clk 0:00:19]}  Rf8 {[%clk 0:00:01]} 28. Qxc7 {[%clk 0:00:19]}  Rfxf2 {[%clk 0:00:02]} 29. d5 {[%clk 0:00:17]} 1-0


[Site "https://www.chess.com"]